bitfinex/quotes_ETHUSD_20250813
["timestamp","ask_amount","ask_price","bid_price","bid_amount"]
[1755073036055,0.9386,4623.2,4623.1,12.4664]
[1755073037729,0.9386,4623.2,4623.1,9.1584]
[1755073037960,0.9386,4623.2,4623.1,11.333]
[1755073038137,0.9386,4623.2,4623.1,8.531]
[1755073041467,0.9386,4623.2,4623.1,3.349]
[1755073041841,1.4886,4623.2,4623.1,3.349]
[1755073042171,1.5966,4623.2,4623.1,3.349]
[1755073045445,1.5966,4623.2,4623.1,2.735]
[1755073045759,0.002,4623.2,4623.1,11.224]
[1755073045959,0.002,4623.2,4623.1,12.3465]
[1755073047148,0.002,4623.2,4623.1,12.4545]
[1755073049566,0.002,4623.2,4623.1,4.5785]
[1755073049754,0.002,4623.2,4623.1,3.456]
[1755073051265,0.002,4623.2,4623.1,6.74504334]
[1755073051634,0.002,4623.7,4623.1,3.74504334]
[1755073051834,0.002,4623.7,4623.2,0.28904334]
[1755073052134,0.002,4623.7,4623.6,0.108]
[1755073052329,0.002,4623.7,4623.6,3.415]
[1755073052534,0.002,4623.7,4623.6,3.7565]
[1755073054767,0.002,4623.7,4623.6,6.7565]
[1755073055463,0.002,4623.7,4623.6,14.6325]
[1755073056269,0.4306,4623.7,4623.6,14.6325]
[1755073056475,0.9287,4623.7,4623.6,14.6325]
[1755073059770,0.9287,4623.7,4623.6,11.9385]
[1755073059973,0.4306,4623.7,4623.6,11.9385]
[1755073060338,0.4306,4623.7,4623.6,6.7565]
[1755073060764,0.002,4623.7,4623.6,6.6485]
[1755073061048,0.002,4623.7,4623.6,6.7565]
[1755073063174,0.4306,4623.7,4623.6,6.7565]
[1755073063375,0.9287,4623.7,4623.6,6.7565]
[1755073064455,0.002,4623.7,4623.6,6.7565]
[1755073065363,0.002,4623.7,4623.6,14.6315]
[1755073068858,0.9287,4623.7,4623.6,11.9375]
[1755073072862,0.9287,4623.7,4623.6,6.7565]
[1755073073597,0.9287,4623.7,4623.6,6.415]
[1755073074093,0.9287,4623.7,4623.6,3.304]
[1755073074598,1.4787,4623.7,4623.6,3.304]
[1755073075396,1.4787,4623.7,4623.6,11.179]
[1755073081901,15.9787,4623.7,4623.6,11.179]
[1755073082201,17.58737,4623.7,4623.6,11.179]
[1755073082398,17.58737,4623.7,4623.6,8.485]
[1755073082602,1.0367,4623.7,4623.6,8.485]
[1755073082906,1.5867,4623.7,4623.6,8.485]
[1755073084672,0.55,4623.6,4623.1,0.041]
[1755073084872,0.55,4623.6,4623.2,3.304]
[1755073085067,1.0193,4623.6,4623.2,3.304]
[1755073085275,0.55,4623.4,4623.3,2.694]
[1755073085501,1.4948,4623.4,4623.3,11.18]
[1755073085672,1.6028,4623.4,4623.3,11.18]
[1755073087005,1.6028,4623.4,4623.3,7.876]
[1755073087302,1.6028,4623.4,4623.3,11.18]
[1755073087601,3.224573,4623.4,4623.3,11.18]
[1755073089803,1.6028,4623.4,4623.3,11.18]
[1755073089998,16.1028,4623.4,4623.3,11.18]
[1755073093078,1.6028,4623.4,4623.3,11.18]
[1755073093603,16.1028,4623.4,4623.3,11.18]
[1755073102313,16.30468035,4623.4,4623.3,11.18]
[1755073102616,17.94664139,4623.4,4623.3,11.18]
[1755073104319,17.74476104,4623.4,4623.3,11.18]
[1755073104491,17.94676175,4623.4,4623.3,11.18]
[1755073105112,20.9467507,4623.4,4623.3,7.876]
[1755073105617,20.9467507,4623.4,4623.3,11.179]
[1755073105794,21.4121121,4623.4,4623.3,11.179]
[1755073106116,21.52109259,4623.4,4623.3,11.179]
[1755073106491,21.4121121,4623.4,4623.3,11.179]
[1755073106691,20.9467507,4623.4,4623.3,11.179]
[1755073106916,20.94670182,4623.4,4623.3,11.179]
[1755073107088,20.94670182,4623.4,4623.3,11.1803483]
[1755073108043,20.83870182,4623.4,4623.3,11.179]
[1755073108331,14.608,4623.4,4623.3,11.179]
[1755073108690,15.7547096,4623.4,4623.3,11.179]
[1755073109024,16.3047096,4623.4,4623.3,11.179]
[1755073110897,15.3599096,4623.4,4623.3,11.179]
[1755073111103,16.2905096,4623.4,4623.3,11.179]
[1755073111300,17.91976056,4623.4,4623.3,11.179]
[1755073112918,14.8099096,4623.4,4623.3,11.179]
[1755073113094,0.3099096,4623.4,4623.3,11.179]
[1755073113419,0.108,4623.4,4623.3,11.179]
[1755073113714,15.158,4623.4,4623.3,11.179]
[1755073114287,15.16,4623.4,4623.3,11.179]
[1755073115835,0.66,4623.4,4623.3,11.179]
[1755073116038,0.11,4623.4,4623.3,12.3011]
[1755073116335,0.002,4623.4,4623.3,12.3011]
[1755073116634,0.002,4623.4,4623.3,9.6071]
[1755073119217,0.002,4623.4,4623.3,7.5331]
[1755073122736,0.002,4623.9,4623.3,7.82215279]
[1755073122905,0.002,4623.9,4623.8,19.25660314]
[1755073123105,0.002,4623.9,4623.8,22.84665593]
[1755073123907,0.002,4624.2,4623.8,22.84665593]
[1755073124161,0.002,4624.8,4623.9,3.54543747]
[1755073124306,0.002,4624.8,4624.6,16.25660314]
[1755073124639,0.002,4624.8,4624.6,22.55760314]
[1755073125528,0.002,4624.8,4624.6,30.43360314]
[1755073129822,0.002,4624.8,4624.6,27.73960314]
[1755073131816,0.002,4624.8,4624.6,22.55760314]
[1755073132017,0.002,4624.8,4624.6,23.8336528]
[1755073133746,0.4448,4624.7,4624.6,23.8336528]
[1755073134050,0.9326,4624.7,4624.6,7.57704966]
[1755073134928,0.9326,4624.7,4624.6,1.27604966]
[1755073135245,0.9326,4624.7,4624.6,3.299]
[1755073135445,0.9326,4624.7,4624.6,7.874]
[1755073135649,0.9326,4624.7,4624.6,11.173]
[1755073136217,1.4826,4624.7,4624.6,11.173]
[1755073137352,1.4826,4624.7,4624.6,11.174]
[1755073138533,1.4826,4624.7,4624.6,8.48]
[1755073139744,1.64186,4624.7,4624.6,8.48]
[1755073141356,15.9826,4624.7,4624.6,8.48]
[1755073144157,1.4826,4624.7,4624.6,8.48]
[1755073144755,15.9826,4624.7,4624.6,8.48]
[1755073145556,15.9826,4624.7,4624.6,11.174]
[1755073146542,0.002,4624.7,4624.6,27.32260314]
[1755073146755,0.002,4624.7,4624.6,29.81821161]
[1755073146963,0.002,4624.7,4624.6,29.52915882]
[1755073147369,0.002,4624.7,4624.6,26.83515882]
[1755073147572,0.002,4624.7,4624.6,27.23221161]
[1755073147736,0.002,4624.7,4624.6,26.94315882]
[1755073149571,0.002,4624.7,4624.6,21.76315882]
[1755073150080,0.002,4624.7,4624.6,5.61455568]
[1755073150870,0.002,4624.7,4624.6,5.31555568]
[1755073151038,0.9205,4624.7,4624.6,3.299]
[1755073151235,1.0285,4624.7,4624.6,3.299]
[1755073151771,1.5785,4624.7,4624.6,3.299]
[1755073152473,1.5785,4624.7,4624.6,0.001]
[1755073152664,1.5785,4624.7,4624.6,3.299]
[1755073155477,1.5785,4624.7,4624.6,11.174]
[1755073155973,0.002,4624.7,4624.6,11.174]
[1755073156148,0.002,4624.7,4624.6,12.2914]
[1755073156638,0.002,4624.7,4624.6,9.5974]
[1755073156844,0.002,4624.7,4624.6,12.5974]
[1755073157045,0.002,4624.7,4624.6,12.7054]
[1755073157365,0.002,4624.8,4624.7,3.0]
[1755073157687,0.002,4626.8,4625.1,3.0]
[1755073157933,0.108,4626.6,4626.0,16.14860314]
[1755073158179,0.002,4626.8,4626.7,16.14860314]
[1755073158390,0.002,4626.8,4626.7,19.44660314]
[1755073158748,0.002,4626.8,4626.7,3.298]
[1755073159059,0.002,4626.8,4626.7,3.6386]
[1755073159378,0.4593,4626.8,4626.7,3.6386]
[1755073159589,0.91567894,4626.8,4626.7,3.298]
[1755073160178,0.91567894,4626.8,4626.7,3.297]
[1755073160565,1.02367894,4626.8,4626.7,3.297]
[1755073160966,1.57367894,4626.8,4626.7,3.297]
[1755073161157,0.55,4626.7,4625.8,0.108]
[1755073161357,0.108,4626.5,4625.9,3.297]
[1755073161564,0.108,4626.5,4625.9,3.6375]
[1755073161764,0.4573,4626.4,4625.9,3.6375]
[1755073161966,0.108,4626.5,4625.9,3.6375]
[1755073162957,0.5653,4626.5,4625.9,3.6375]
[1755073165349,0.5653,4626.5,4626.4,5.18]
[1755073165583,1.0265,4626.5,4626.4,8.477]
[1755073166087,0.5653,4626.5,4626.4,8.477]
[1755073166304,1.0265,4626.5,4626.4,8.477]
[1755073166893,1.5765,4626.5,4626.4,5.18]
[1755073167094,1.5765,4626.5,4626.4,8.477]
[1755073167300,1.73415,4626.5,4626.4,8.477]
[1755073167710,1.73415,4626.5,4626.4,5.179]
[1755073167909,1.73415,4626.5,4624.6,0.001]
[1755073167910,0.55,4626.4,4624.6,0.001]
[1755073168094,0.55,4626.4,4624.8,0.108]
[1755073168095,0.108,4625.4,4624.8,0.108]
[1755073169034,0.108,4625.4,4625.0,3.0]
[1755073169227,0.108,4625.4,4625.1,0.6405]
[1755073169524,0.108,4625.4,4625.2,3.297]
[1755073170435,1.0038,4626.1,4625.2,3.297]
[1755073170593,0.108,4625.7,4625.2,3.297]
[1755073171124,0.5618,4625.7,4625.2,3.297]
[1755073171288,0.108,4625.7,4625.2,3.297]
[1755073171493,0.9097,4625.6,4625.3,3.297]
[1755073171794,0.108,4625.4,4625.3,3.297]
[1755073171995,1.0177,4625.4,4625.3,3.297]
[1755073175368,1.0177,4625.4,4625.3,11.17]
[1755073175653,0.5618,4625.4,4625.3,11.17]
[1755073175828,0.108,4625.4,4625.3,11.17]
[1755073178046,0.5618,4625.4,4625.3,11.17]
[1755073178952,1.0177,4625.4,4625.3,11.17]
[1755073180459,1.5677,4625.4,4625.3,5.18]
[1755073180661,1.5677,4625.4,4625.3,8.476]
[1755073185434,1.5677,4625.4,4625.3,11.169]
[1755073188171,16.22447,4625.4,4625.3,7.873]
[1755073188463,16.22447,4625.4,4625.3,11.169]
[1755073189255,15.05,4625.4,4625.3,11.169]
[1755073189435,15.158,4625.4,4625.3,11.169]
[1755073190367,16.0677,4625.4,4625.3,7.873]
[1755073190664,16.0677,4625.4,4625.3,11.169]
[1755073192646,16.0677,4625.4,4625.3,7.873]
[1755073192847,20.87630893,4625.4,4625.3,11.169]
[1755073193370,20.67447,4625.4,4625.3,11.169]
[1755073193543,20.87629128,4625.4,4625.3,11.169]
[1755073197081,20.87622576,4625.4,4625.3,11.169]
[1755073201958,20.87622576,4625.4,4625.3,11.219]
[1755073203384,44.27997334,4625.4,4625.3,11.219]
[1755073203684,44.74441983,4625.4,4625.3,11.219]
[1755073203885,44.63819814,4625.4,4625.3,11.219]
[1755073204259,44.17375165,4625.4,4625.3,11.219]
[1755073204787,44.17375165,4625.4,4625.3,11.22]
[1755073205187,43.97199589,4625.4,4625.3,11.22]
[1755073205362,44.17355828,4625.4,4625.3,11.22]
[1755073206790,44.17355828,4625.4,4625.3,5.512]
[1755073206977,42.56678828,4625.4,4625.3,5.182]
[1755073207175,43.03104302,4625.4,4625.3,5.182]
[1755073207793,43.03097153,4625.4,4625.3,5.182]
[1755073208084,3.55,4625.3,4624.8,0.001]
[1755073208256,0.658,4624.9,4624.8,0.001]
[1755073208759,19.1077,4624.9,4624.8,0.001]
[1755073208964,19.30920885,4624.9,4624.8,0.001]
[1755073209305,19.30920885,4624.9,4624.8,3.297]
[1755073210160,35.43673474,4624.9,4624.8,3.297]
[1755073210374,0.55,4624.8,4624.7,0.001]
[1755073210606,4.70120885,4624.8,4624.7,0.001]
[1755073210801,5.16542822,4624.8,4624.7,0.001]
[1755073211001,19.66542822,4624.8,4624.7,0.001]
[1755073211200,19.66542822,4624.8,4624.3,0.001]
[1755073211421,16.69979399,4624.9,4624.3,0.001]
[1755073211422,20.97352589,4624.4,4624.3,0.001]
[1755073211602,21.74725411,4624.4,4624.3,0.001]
[1755073211801,37.19695411,4624.4,4624.3,3.297]
[1755073211992,4.846,4624.3,4621.7,0.0029]
[1755073212193,6.46142822,4624.3,4621.7,0.0029]
[1755073212493,5.62969632,4624.3,4621.7,0.0029]
[1755073212694,20.12969632,4624.3,4621.7,0.0029]
[1755073213090,19.67752589,4623.9,4621.7,0.0029]
[1755073213289,19.98703474,4623.9,4621.7,0.0029]
[1755073213492,36.58070821,4623.9,4623.8,3.297]
[1755073213729,37.53040821,4623.9,4623.8,3.297]
[1755073214299,3.55,4623.8,4621.2,0.0029]
[1755073214499,0.75129958,4623.7,4621.6,0.0029]
[1755073214700,1.70099958,4623.7,4621.6,0.0029]
[1755073214899,19.57685031,4623.7,4621.6,0.0029]
[1755073215094,19.7780598,4623.7,4621.6,0.0029]
[1755073215300,19.7780598,4623.7,4623.6,5.184]
[1755073215512,19.7780598,4623.7,4623.6,5.183]
[1755073216214,19.7780598,4623.7,4623.6,8.48]
[1755073216409,18.8283598,4623.7,4623.6,8.48]
[1755073217326,17.70120949,4623.7,4623.6,8.48]
[1755073217905,18.25120949,4623.7,4623.6,8.48]
[1755073222336,18.72230949,4623.7,4623.6,8.48]
[1755073222636,19.20090949,4623.7,4623.6,5.183]
[1755073222833,19.20090949,4623.7,4623.6,8.479]
[1755073223040,3.55,4623.6,4623.1,0.001]
[1755073223214,0.55,4623.4,4623.3,8.479]
[1755073223538,20.62722589,4623.4,4623.3,5.184]
[1755073223738,35.90063359,4623.4,4623.3,5.184]
[1755073223919,35.42203359,4623.4,4623.3,5.184]
[1755073224116,3.55,4623.3,4623.1,0.001]
[1755073224323,5.16511144,4623.3,4623.1,0.001]
[1755073224817,19.66511144,4623.3,4623.2,0.096]
[1755073225319,19.66511144,4623.3,4623.2,5.28]
[1755073226853,18.71541144,4623.3,4623.2,5.28]
[1755073227053,20.22869433,4623.3,4623.2,5.28]
[1755073227264,20.22869433,4623.3,4623.2,5.185]
[1755073227265,21.17839433,4623.3,4623.2,5.185]
[1755073227557,21.64223114,4623.3,4623.2,8.482]
[1755073227870,21.75023114,4623.3,4623.2,8.482]
[1755073228228,28.92023114,4623.3,4623.2,8.482]
[1755073228660,3.55,4623.2,4623.1,0.001]
[1755073228868,5.85843264,4623.2,4623.1,8.481]
[1755073229035,13.02843264,4623.2,4623.1,8.48]
[1755073229236,27.52843264,4623.2,4623.1,5.184]
[1755073229438,28.10864794,4623.2,4622.6,0.001]
[1755073229638,2.16532,4623.1,4622.6,0.001]
[1755073229979,6.53702479,4623.1,4622.6,0.001]
[1755073230153,21.61724009,4623.1,4622.6,0.001]
[1755073230531,21.61724009,4623.1,4623.0,0.094]
[1755073231142,20.66714009,4623.1,4623.0,0.094]
[1755073231350,21.61724009,4623.1,4623.0,0.094]
[1755073232138,19.53692479,4623.1,4623.0,0.094]
[1755073232338,19.64492479,4623.1,4623.0,0.094]
[1755073232562,14.80938319,4623.1,4623.0,0.094]
[1755073232934,14.608,4623.1,4623.0,0.094]
[1755073233145,17.8093038,4623.1,4623.0,0.094]
[1755073233638,18.35936406,4623.1,4623.0,0.094]
[1755073235375,18.35936406,4623.1,4623.0,5.279]
[1755073235672,18.35948017,4623.1,4623.0,5.279]
[1755073235840,20.19542819,4623.1,4623.0,5.279]
[1755073237977,14.80948017,4623.1,4623.0,5.279]
[1755073238161,14.80948017,4623.1,4623.0,5.2819]
[1755073238976,7.28274109,4624.5,4623.0,5.2819]
[1755073239144,0.2016277,4624.2,4623.1,0.0029]
[1755073239350,14.7016277,4624.1,4623.1,0.0029]
[1755073239540,0.55,4623.9,4623.2,0.52819]
[1755073239742,0.55,4623.9,4623.3,0.0029]
[1755073239743,0.2016277,4623.9,4623.3,0.0029]
[1755073240162,0.108,4623.4,4623.3,0.0029]
[1755073240893,0.658,4623.4,4623.3,0.0029]
[1755073243801,0.002,4624.2,4623.3,0.0029]
[1755073243969,0.108,4624.1,4623.4,0.353109]
[1755073244168,0.108,4624.1,4623.5,0.0029]
[1755073245402,0.55,4624.0,4623.6,2.695]
[1755073245597,0.108,4624.1,4623.6,2.695]
[1755073245798,0.55,4624.0,4623.7,3.5684]
[1755073246003,0.55,4624.0,4623.7,3.5655]
[1755073246301,0.55,4624.0,4623.8,0.0029]
[1755073247093,0.55,4624.0,4623.9,0.0029]
[1755073247917,0.55,4624.0,4623.7,0.2695]
[1755073248205,0.002,4624.2,4623.9,3.295]
[1755073248503,0.002,4624.2,4621.6,0.001]
[1755073248504,0.55,4623.9,4622.9,0.108]
[1755073248690,0.108,4623.5,4623.1,3.295]
[1755073248896,0.55,4623.4,4623.1,3.295]
[1755073249492,0.108,4623.5,4622.7,0.001]
[1755073249493,0.55,4623.7,4622.8,0.0029]
[1755073249710,0.55,4623.7,4623.2,3.295]
[1755073250199,0.658,4623.3,4623.2,3.295]
[1755073250777,0.658,4623.3,4623.2,3.2979]
[1755073251285,0.658,4623.3,4623.2,3.295]
[1755073255307,0.658,4623.3,4623.2,11.173]
[1755073255490,1.1091,4623.3,4623.2,11.173]
[1755073255693,1.6081,4623.3,4623.2,11.173]
[1755073256610,16.1081,4623.3,4623.2,11.173]
[1755073256807,17.71891,4623.3,4623.2,11.173]
[1755073257594,17.71891,4623.3,4623.2,11.172]
[1755073258890,0.108,4623.3,4623.2,11.172]
[1755073259312,0.108,4623.5,4623.2,11.1749]
[1755073259620,0.108,4623.5,4623.3,0.0029]
[1755073259795,0.108,4623.5,4623.4,0.0029]
[1755073259991,0.002,4624.1,4623.4,0.0029]
[1755073260194,0.55,4624.0,4623.6,3.0]
[1755073260523,0.11,4624.1,4623.6,3.0]
[1755073261589,0.55,4624.0,4623.6,3.0]
[1755073262113,0.55,4624.0,4623.6,3.0029]
[1755073262908,0.55,4624.0,4623.6,3.0]
[1755073263108,0.55,4624.0,4623.7,0.673269]
[1755073263322,0.55,4624.0,4623.8,3.294]
[1755073263706,0.55,4624.0,4623.9,3.294]
[1755073265105,0.55,4624.0,4623.7,0.673269]
[1755073265305,0.55,4624.0,4623.9,5.182]
[1755073266035,0.55,4624.0,4623.9,8.476]
[1755073266401,1.4976,4624.0,4623.9,8.476]
[1755073268401,1.4976,4624.0,4623.9,8.516]
[1755073268602,1.4976,4624.0,4623.9,5.222]
[1755073268921,1.4976,4624.0,4623.9,8.516]
[1755073269120,0.55,4624.0,4623.9,5.222]
[1755073269336,0.108,4624.0,4623.9,9.0382]
[1755073270019,0.108,4624.0,4623.9,3.8562]
[1755073271200,0.108,4624.0,4623.9,3.334]
[1755073271439,1.1148,4624.0,4623.9,3.334]
[1755073272826,0.658,4624.0,4623.9,3.334]
[1755073274711,1.1148,4624.0,4623.9,3.334]
[1755073275155,1.6056,4624.0,4623.9,3.334]
[1755073275433,1.6056,4624.0,4623.9,11.21]
[1755073276240,1.76676,4624.0,4623.9,7.916]
[1755073276443,1.76676,4624.0,4623.9,11.21]
[1755073276609,2.415025,4624.0,4623.9,11.21]
[1755073276811,1.76676,4624.0,4623.9,11.21]
[1755073277541,1.6056,4624.0,4623.9,11.21]
[1755073278290,0.658,4624.0,4623.9,11.21]
[1755073281991,0.658,4624.0,4623.1,0.001]
[1755073281992,0.55,4623.9,4623.1,0.001]
[1755073282190,0.55,4623.8,4623.2,3.294]
[1755073282563,0.55,4623.6,4623.2,3.294]
[1755073282900,0.55,4623.4,4623.2,3.294]
[1755073283203,1.4976,4623.3,4623.2,3.294]
[1755073285472,1.4976,4623.3,4623.2,8.476]
[1755073286671,1.64736,4623.3,4623.2,8.476]
[1755073288371,0.55,4623.3,4623.2,8.476]
[1755073289871,1.5097,4623.3,4623.2,8.476]
[1755073291616,0.55,4623.3,4623.2,8.476]
[1755073291803,0.658,4623.3,4623.2,8.476]
[1755073295930,1.6177,4623.3,4623.2,8.476]
[1755073297237,1.1198,4623.3,4623.2,8.476]
[1755073297530,0.658,4623.3,4623.2,8.476]
[1755073297732,1.6177,4623.3,4623.2,8.476]
[1755073298999,1.1198,4623.3,4623.2,8.476]
[1755073300627,0.658,4623.3,4623.2,8.476]
[1755073301049,15.158,4623.3,4623.2,8.476]
[1755073301429,0.658,4623.3,4623.2,8.476]
[1755073301731,1.1198,4623.3,4623.2,8.476]
[1755073301950,1.6177,4623.3,4623.2,8.476]
[1755073302833,1.1198,4623.3,4623.2,5.182]
[1755073303047,1.6177,4623.3,4623.2,8.476]
[1755073304446,0.658,4623.3,4623.2,8.476]
[1755073304836,1.1198,4623.3,4623.2,8.476]
[1755073305163,1.6177,4623.3,4623.2,8.476]
[1755073306442,0.658,4623.3,4623.2,8.476]
[1755073306642,1.1198,4623.3,4623.2,8.476]
[1755073306833,1.6177,4623.3,4623.2,8.476]
[1755073307761,1.77947,4623.3,4623.2,8.476]
[1755073308432,16.27947,4623.3,4623.2,8.476]
[1755073309260,16.1177,4623.3,4623.2,8.476]
[1755073309766,15.158,4623.3,4623.2,8.476]
[1755073310462,15.6198,4623.3,4623.2,8.476]
[1755073311860,16.1177,4623.3,4623.2,8.476]
[1755073312077,16.1177,4623.3,4623.2,5.182]
[1755073312268,16.32000546,4623.3,4623.2,8.476]
[1755073312463,17.95201366,4623.3,4623.2,8.476]
[1755073313966,17.95198803,4623.3,4623.2,8.476]
[1755073315567,3.45198803,4623.3,4623.2,8.476]
[1755073315769,1.81998748,4623.3,4623.2,8.476]
[1755073316202,16.31998748,4623.3,4623.2,8.476]
[1755073318675,16.319916,4623.3,4623.2,8.476]
[1755073318869,16.319916,4623.3,4623.2,5.182]
[1755073318870,19.319916,4623.3,4623.2,5.182]
[1755073319098,19.78583606,4623.3,4623.2,8.476]
[1755073319294,21.88749196,4623.3,4623.2,8.476]
[1755073321311,21.88738109,4623.3,4623.2,5.182]
[1755073321610,21.88399923,4623.3,4623.2,8.476]
[1755073321795,21.88399923,4623.3,4623.2,5.182]
[1755073321796,21.41807917,4623.3,4623.2,5.182]
[1755073321997,21.41807917,4623.3,4623.2,8.476]
[1755073322200,19.31645581,4623.3,4623.2,8.476]
[1755073323283,4.16183767,4623.3,4623.2,8.476]
[1755073323500,4.26983767,4623.3,4623.2,8.476]
[1755073323701,4.81983767,4623.3,4623.2,8.476]
[1755073324031,19.31983767,4623.3,4623.2,8.476]
[1755073324400,21.31665474,4623.3,4623.2,5.182]
[1755073324630,21.31665474,4623.3,4623.2,8.476]
[1755073325129,5.85695474,4623.3,4623.2,8.476]
[1755073325327,3.86013767,4623.3,4623.2,8.476]
[1755073325920,4.33453767,4623.3,4623.2,8.476]
[1755073326122,0.31013767,4623.3,4623.2,8.476]
[1755073326402,0.108,4623.3,4623.2,8.476]
[1755073327142,0.108,4623.4,4623.2,8.5189]
[1755073327332,0.108,4623.4,4623.3,1.12159]
[1755073327506,0.108,4623.4,4623.3,4.41559]
[1755073328030,0.108,4623.4,4623.3,3.294]
[1755073329404,1.5846,4623.4,4623.3,3.294]
[1755073329737,0.658,4623.4,4623.3,3.294]
[1755073331032,0.108,4623.4,4623.3,3.294]
[1755073331222,0.108,4623.4,4623.3,3.3369]
[1755073331418,0.108,4623.4,4623.3,4.18899]
[1755073331655,0.002,4623.9,4623.3,4.18899]
[1755073331951,0.002,4624.0,4623.4,3.0409]
[1755073332157,0.002,4624.0,4623.8,0.108]
[1755073332322,0.002,4624.0,4623.9,6.294]
[1755073332521,0.002,4624.0,4623.9,6.3349]
[1755073335436,0.002,4624.0,4623.9,14.2129]
[1755073335661,0.002,4624.0,4623.9,15.64499]
[1755073340073,0.002,4624.0,4623.9,9.90809]
[1755073340276,1.0264,4624.0,4623.9,8.476]
[1755073341094,0.552,4624.0,4623.9,8.476]
[1755073342158,0.552,4624.0,4623.9,3.293]
[1755073342490,1.0264,4624.0,4623.9,3.293]
[1755073345014,1.4786,4624.0,4623.9,3.293]
[1755073345504,1.4786,4624.0,4623.9,11.169]
[1755073345664,1.0264,4624.0,4623.9,12.2859]
[1755073349185,1.0264,4624.0,4623.9,7.876]
[1755073349386,1.4786,4624.0,4623.9,5.182]
[1755073349588,1.4786,4624.0,4623.9,8.474]
[1755073350607,1.4786,4624.0,4623.9,5.182]
[1755073350778,1.4786,4624.0,4623.9,8.474]
[1755073352084,3.1526687,4624.0,4623.9,5.182]
[1755073352286,3.1526687,4624.0,4623.9,8.474]
[1755073352797,1.4786,4624.0,4623.9,8.474]
[1755073353001,15.9786,4624.0,4623.9,8.474]
[1755073354729,0.55,4623.9,4623.1,0.001]
[1755073354938,1.4937,4623.9,4623.3,5.182]
[1755073355131,0.55,4623.9,4623.4,1.008]
[1755073355425,0.55,4623.7,4623.5,2.694]
[1755073355635,0.55,4623.7,4623.6,3.292]
[1755073356307,1.6017,4623.7,4623.6,8.474]
[1755073358836,0.658,4623.7,4623.6,8.474]
[1755073359938,1.1053,4623.7,4623.6,8.474]
[1755073361728,0.658,4623.7,4623.6,8.474]
[1755073362760,0.658,4623.7,4623.5,2.694]
[1755073362961,0.108,4623.7,4623.6,8.474]
[1755073363861,0.002,4624.0,4623.6,8.5149]
[1755073364034,0.552,4624.0,4623.7,0.0409]
[1755073364240,0.552,4624.0,4623.8,4.15429]
[1755073364841,0.552,4624.0,4623.8,3.292]
[1755073365346,0.552,4624.0,4623.9,7.877]
[1755073365553,0.552,4624.0,4623.9,11.169]
[1755073369745,0.002,4624.0,4623.9,11.169]
[1755073371561,0.002,4624.0,4623.9,3.292]
[1755073371778,0.002,4624.0,4623.9,3.6212]
[1755073375360,0.002,4624.0,4623.9,11.4962]
[1755073376787,0.4493,4624.0,4623.9,11.4962]
[1755073377327,0.002,4624.0,4623.9,11.4962]
[1755073377809,0.002,4624.0,4623.9,5.5112]
[1755073377991,0.4493,4624.0,4623.9,8.8022]
[1755073378804,1.4957,4624.0,4623.9,5.182]
[1755073379009,1.4957,4624.0,4623.9,8.473]
[1755073379224,15.9957,4624.0,4623.9,8.473]
[1755073381320,15.9957,4624.0,4623.9,5.182]
[1755073381493,18.20225568,4624.0,4623.9,8.473]
[1755073382215,17.65225568,4624.0,4623.9,8.473]
[1755073383113,18.20225568,4624.0,4623.9,8.473]
[1755073383915,21.40396344,4624.0,4623.9,8.473]
[1755073384537,21.40396187,4624.0,4623.9,8.473]
[1755073387939,21.40396187,4624.0,4623.9,5.182]
[1755073388231,21.40396187,4624.0,4623.9,8.473]
[1755073388731,21.40396187,4624.0,4623.9,5.182]
[1755073388928,21.40396187,4624.0,4623.9,8.473]
[1755073390610,21.40384467,4624.0,4623.9,8.473]
[1755073390827,21.40384467,4624.0,4623.9,5.182]
[1755073390996,21.40384467,4624.0,4623.5,2.694]
[1755073391202,19.80646931,4623.6,4623.5,2.694]
[1755073391429,20.0080583,4623.6,4623.5,5.183]
[1755073391731,35.4262583,4623.6,4623.5,5.183]
[1755073392317,35.4262583,4623.6,4623.5,8.474]
[1755073392699,35.22466931,4623.6,4623.5,8.474]
[1755073392900,37.63273529,4623.6,4623.5,8.474]
[1755073393602,37.6326833,4623.6,4623.5,8.474]
[1755073394033,21.48421399,4623.6,4623.5,5.183]
[1755073394204,37.6326833,4623.6,4623.5,8.474]
[1755073394832,38.2811213,4623.6,4623.5,8.474]
[1755073395438,38.2811213,4623.6,4623.5,5.183]
[1755073395640,38.2811213,4623.6,4623.5,8.474]
[1755073398129,21.21445199,4623.6,4623.5,8.474]
[1755073398426,20.56601399,4623.6,4623.5,8.474]
[1755073398631,20.93421399,4623.6,4623.5,8.474]